Cogmind - Beta 9.6 @@@ ROGUE MODE // 2020.05.02 @ 23:43:29 // AFD2020/Player2 Player: Nalzok Result: Core destroyed Performance ------------- Evolutions (0) 0 Regions Visited (1) 200 Robots Destroyed (0) 0 Value Destroyed (0) 0 Prototype IDs (0) 0 Alien Tech Used (0) 0 Bonus (39) 39 TOTAL SCORE: 239 Bonus ------- Follower Combat Kills 39 Cogmind --------- Core Integrity 0/250 Matter 260/300 Energy 250/250 System Corruption 0% Temperature Cool (0) Movement Walking (150) Ox1 Location -10/Materials Parts ------- > --- POWER (1) -------- Ion Engine > --- PROPULSION (2) --- Aluminum Leg Aluminum Leg > --- UTILITY (2) ------ Large Storage Unit Targeting Computer > --- WEAPON (2) ------- Assault Rifle Light Assault Rifle > --- INVENTORY (10) --- Ion Engine Aluminum Leg Large Storage Unit Large Storage Unit Large Storage Unit Large Storage Unit Core Shielding EM Pulse Gun Small Laser Beam Cannon Peak State ------------ > --- POWER ------------ Ion Engine > --- PROPULSION ------- Aluminum Leg Aluminum Leg > --- UTILITY ---------- Large Storage Unit Targeting Computer > --- WEAPON ----------- Assault Rifle Light Assault Rifle > --- INVENTORY -------- Ion Engine Aluminum Leg Small Storage Unit Large Storage Unit Large Storage Unit Large Storage Unit Large Storage Unit EM Pulse Gun Small Laser Beam Cannon [Rating: 8] Favorites ----------- Power Ion Engine Engine Ion Engine Propulsion Aluminum Leg Leg Aluminum Leg Utility Targeting Computer Storage Small Storage Unit Processor Targeting Computer Weapon Assault Rifle Ballistic Gun Assault Rifle Build | -11 -10 ------- Run | Scr Mat Slots Evolved . | . . Power . | . . Propulsion . | . . Utility . | . . Weapon . | . . Parts Attached 2 | . 2 Power . | . . Engine . | . . Core . | . . Reactor . | . . Propulsion . | . . Treads . | . . Leg . | . . Wheel . | . . Hover . | . . Flight . | . . Utility 2 | . 2 Device . | . . Storage 1 | . 1 Processor 1 | . 1 Hackware . | . . Protection . | . . Artifact . | . . Weapon . | . . Energy Gun . | . . Energy Cannon . | . . Ballistic Gun . | . . Ballistic Cannon . | . . Launcher . | . . Special Weapon . | . . Impact Weapon . | . . Slashing Weapon . | . . Piercing Weapon . | . . Special Melee Weapon . | . . Unidentified Prototypes . | . . Parts Lost . | . . Power . | . . Propulsion . | . . Utility . | . . Weapon . | . . Highest Loss Streak . | . . Average Slot Usage (%) 97 | . 97 Engine 14 | . 14 Leg 28 | . 28 Storage 14 | . 14 Processor 11 | . 11 Ballistic Gun 28 | . 28 Naked Turns . | . . Heaviest Build 24 | 12 24 Greatest Support 20 | 20 20 Greatest Overweight (x) 1 | . 1 Average Overweight (x) . | . . Largest Inventory Capacity 10 | 6 10 Average Capacity 7 | 6 7 Most Carried 10 | 5 10 Average Carried 5 | 4 5 Final Capacity 10 | 6 10 Final Carried 10 | 2 10 Class Distribution -------------------- 100% | Mutant Dominant Class ---------------- Mutant | -10/Materials Resources | -11 -10 ----------- Run | Scr Mat Matter Collected 200 | 200 . Remotely . | . . Salvage Created . | . . Parts . | . . Haulers Intercepted . | . . Recyclers Shooed . | . . Parts Field Recycled . | . . Retrieved Matter . | . . Parts Self-Destructed . | . . Prevented . | . . Kills | -11 -10 ------- Run | Scr Mat Combat Hostiles Destroyed . | . . Classes Destroyed . | . . Best Kill Streak . | . . Combat Bots Only . | . . Max Kills in Single Turn . | . . Gunslinging . | . . Exploded . | . . Melee . | . . Uniques/NPCs Destroyed . | . . Combat | -11 -10 -------- Run | Scr Mat Damage Taken 10 | . 10 Core . | . . Absorbed by Shields . | . . Core Remaining (%) 100 | 100 . Volleys Fired 5 | . 5 Largest 2 | . 2 Hottest 40 | . 40 Shots Fired 10 | . 10 Gun 10 | . 10 Cannon . | . . Launcher . | . . Special . | . . Kinetic 10 | . 10 Thermal . | . . Explosive . | . . Electromagnetic . | . . Robot Hit Streak 2 | . 2 Robot Miss Streak 3 | . 3 Penetration Max . | . . Secondary Targets . | . . Shots Hit Robots 5 | . 5 Core Hits 2 | . 2 Critical Hits 1 | . 1 Critical Kills . | . . Critical Parts Destroyed 1 | . 1 Melee Attacks . | . . Impact . | . . Slashing . | . . Piercing . | . . Sneak Attacks . | . . Combat Hostiles . | . . Follow-up Attacks . | . . Damage Inflicted 43 | . 43 Guns 43 | . 43 Cannons . | . . Explosions . | . . Melee . | . . Ramming . | . . Kinetic 43 | . 43 Thermal . | . . Explosive . | . . Electromagnetic . | . . Impact . | . . Slashing . | . . Piercing . | . . Highest Corruption . | . . Average Corruption . | . . Corruption Purged . | . . Overload Shots . | . . Overflow Damage . | . . Projectiles . | . . Explosions . | . . Melee . | . . Knockbacks . | . . Impact . | . . Kinetic . | . . Secondary . | . . Self-Inflicted Damage . | . . Shots . | . . Rammed . | . . Targets Rammed . | . . Kicked . | . . Crushed . | . . Highest Temperature . | . . Average Temperature . | . . Received Heat Transfer 6 | . 6 Siege Activations . | . . Robots Corrupted . | . . Combat Hostiles . | . . Parts Fried . | . . Impact Corruptions . | . . Robots Melted . | . . Combat Hostiles . | . . Parts Melted . | . . Heat Transferred . | . . Parts Sabotaged . | . . Parts Stolen . | . . Parts Stripped . | . . Power Chain Reactions . | . . Missiles Intercepted . | . . Alert | -11 -10 ------- Run | Scr Mat Peak Influence 134 | . 134 Average Influence 20 | . 21 Maximum Alert Level . | . . Low Security (%) 100 | 100 100 Level 1 . | . . Level 2 . | . . Level 3 . | . . Level 4 . | . . Level 5 . | . . High Security . | . . Max Security . | . . Squads Dispatched 1 | . 1 Investigation 1 | . 1 Extermination . | . . Reinforcement . | . . Assault . | . . Garrison . | . . Intercept . | . . Construction Impeded . | . . Haulers Reinforced . | . . Stealth | -11 -10 --------- Run | Scr Mat Distress Signals . | . . Communications Jammed . | . . Distress Signals . | . . Times Spotted 4 | . 4 Peak Tracking Total 4 | . 4 Tactical Retreats . | . . Traps | -11 -10 ------- Run | Scr Mat Traps Triggered 1 | . 1 Indirectly . | . . Trap Hack Attempts . | . . Triggered . | . . Disarmed . | . . Reprogrammed . | . . Reused . | . . Traps Extracted . | . . Installed . | . . Triggered . | . . Machines | -11 -10 ---------- Run | Scr Mat Machines Disabled . | . . Max in Single Turn . | . . Machines Sabotaged . | . . Garrisons Compromised . | . . Overloaded Fab Kills . | . . Fab Network Shutdowns . | . . Hacking | -11 -10 --------- Run | Scr Mat Machines Accessed 3 | . 3 Terminals 3 | . 3 Fabricators . | . . Repair Stations . | . . Recycling Units . | . . Scanalyzers . | . . Garrison Access . | . . Total Hacks 4 | . 4 Successful 2 | . 2 Failed 2 | . 2 Catastrophic 2 | . 2 Database Lockouts . | . . Manual 4 | . 4 Terminals 4 | . 4 Fabricators . | . . Repair Stations . | . . Recycling Units . | . . Scanalyzers . | . . Garrison Access . | . . Terminal Hacks 1 | . 1 Unreport Threat 1 | . 1 Fabricator Hacks . | . . Repair Station Hacks . | . . Recycling Unit Hacks . | . . Scanalyzer . | . . Garrison Access Hacks . | . . Unauthorized Hacks 1 | . 1 Terminals 1 | . 1 Botnet 1 | . 1 Fabricators . | . . Repair Stations . | . . Recycling Units . | . . Scanalyzers . | . . Garrison Access . | . . Data Cores Recovered . | . . Used . | . . Hacking Detections 2 | . 2 Full Trace Events . | . . Feedback Events . | . . Feedback Blocked . | . . Robot Schematics Acquired . | . . Robots Built . | . . Matter . | . . Time . | . . Total Robot Build Rating . | . . Part Schematics Acquired . | . . Parts Built . | . . Matter . | . . Time . | . . Total Part Build Rating . | . . Parts Repaired . | . . Time . | . . Parts Recycled . | . . Recycled Matter . | . . Retrieved Matter . | . . Retrieved Components . | . . Parts Scanalyzed . | . . Part Schematics Acquired . | . . Parts Damaged . | . . Bothacking | -11 -10 ------------ Run | Scr Mat Used RIF Installer . | . . Robots Hacked . | . . Non-combat . | . . Combat . | . . Robot Hacks Applied . | . . Relay Couplers Released . | . . Robots Rewired . | . . Allies Hacked . | . . Hacks Repelled . | . . Allies | -11 -10 -------- Run | Scr Mat Total Allies 1 | . 1 Largest Group 1 | . 1 Highest-Rated Group 53 | . 53 Highest-Rated Ally 53 | . 53 Total Orders . | . . Ally Attacks 7 | . 7 Total Damage 525 | . 525 Kills 7 | . 7 Allies Corrupted . | . . Allies Melted . | . . Intel | -11 -10 ------- Run | Scr Mat Robot Analysis Total . | . . Derelict Logs Recovered . | . . Drone Launches . | . . Drone Recoveries . | . . Exploration | -11 -10 ------------- Run | Scr Mat Turns Passed 222 | 7 215 Spaces Moved 150 | 5 145 Core . | . . Treads . | . . Legs 150 | 5 145 Wheels . | . . Hover . | . . Flight . | . . Fastest Speed 120 | 120 120 Average Speed 127 | 120 127 Slowest Speed 150 | 120 150 Overloaded Moves . | . . Propulsion Burnouts . | . . Robots Hopped . | . . Cave-ins Triggered . | . . Exploration Rate (%) 18 | 2 34 Regions Visited 1 Branch Regions . Pre-discovered Areas . | . . Known Exits Taken . | . . Unknown Exits Taken 1 | 1 . Scrap Searched . | . . Spaces Dug . | . . Terrain Destroyed . | . . Melee . | . . Projectile . | . . AOE . | . . Actions | -11 -10 --------- Run | Scr Mat Total 175 | 8 167 Wait 4 | . 4 Move 149 | 4 145 Hop . | . . Pick Up 9 | . 9 Fast Attach 1 | . 1 Attach . | . . Detach . | . . Swap 1 | . 1 Drop 6 | 4 2 Fire 5 | . 5 Melee . | . . Ram . | . . Kick . | . . Crush . | . . Escape Stasis . | . . Rewire . | . . Trap . | . . Miscellaneous . | . . Route ------- -11/Scrapyard -10/Materials (discovered 1 exit: [*Mat]) History --------- Turn | Location | Event 3 | -11/Scrapyard | Discovered new exit (range 3) 8 | -11/Scrapyard | Entered Materials 125 | -10/Materials | Discovered new exit (range 10) 196 | -10/Materials | Core integrity fell below 50% 214 | -10/Materials | Core integrity fell below 20% 223 | -10/Materials | Core destroyed Last Messages --------------- 00146_ Destroyed Aluminum Leg. 00147_ G-34 Mercenary destroyed. 00164_ Acquired Lrg. Storage Unit. 00174_ Dropped Sml. Storage Unit. 00174_ Acquired Lrg. Storage Unit. 00175_ K-01 Serf collects debris. 00181_ W-16 Scout destroyed. Player 2: "Didn't stand a chance." 00182_ K-01 Serf collects debris. 00183_ W-16 Scout destroyed. 00186_ K-01 Serf collects debris. 00188_ Connecting with Terminal... 00191_ R-06 Scavenger collects Sml. Storage Unit. 00191_ K-01 Serf collects debris. 00201_ Connecting with Terminal... >>Alert(Purge) Purged threat record, alert level lowered. 00210_ Dropped Lrg. Storage Unit. 00211_ Acquired Core Shielding. 00217_ K-01 Serf collects debris. Map ----- +----------------------------------------------------+ | ?????????????????? ????????????????????????? | | ?????????????????? "??????????????????????? | | ?????????????????? "?? ??????????????????? | | ?????????????????# """ "?????????????????? | | ?????????????????# ????????????????? | | ????????????????? ????????????????? | | ????????????????? = """ ""?????????##+##??? | | ????????????????? !%! """ """ ????### ??? | | ????????????????? ! """ """ ????? #??? | | ????????????????? ?????? #??? | | ????????????###### ! ???????? #### | | ????????????# % #?????????# # | | ????????????+ ############ # | | ????????????# ^ + # # | | ????????????# # # = # | | ????????????# !! # # | | ????????????# # # | | ????????????# + !% | | ????????????# # # | | ????????+#### ####+#######+# # | | ?????# "" # k """ #?# #???# #### | | ?????# "" # "T" #?###???# #??? | | ?????###+##### "T # #???????# #??? | | ?????????????# "" # #???????# #??? | | ?????????????# "" # #???????+ +??? | | ?????????????# @ """ #???????# #??? | | ?????????????# # """ #???????# < #??? | | ?????????????######### """ !#???????# #??? | | ?????????????????????# #???????#####??? | | ?????????????????????##########??????????????? | | ?????????????????????????????????????????????? | | ?????????????????????????????????????????????? | | ?????????????????????????????????????????????? | | | | | | | | | | | | | | | | | | | | | | | | | | | | | | | | | | | +----------------------------------------------------+ Best States ------------- Heat Dissipation 25 Energy Generation 10 Energy Capacity 250 Matter Stores 300 Matter Capacity 300 Sight Range 16 Terrain Scan Density 10 Evasion (%) 40 Targeting Accuracy 5 Item Schematics ----------------- None Robot Schematics ------------------ None Fabricated ------------ Nothing Alien Tech Used ----------------- None Achievements -------------- None Challenges ------------ None Player 2 | -11 -10 ---------- Run | Scr Mat Slots Evolved . | . . Power . | . . Propulsion . | . . Utility . | . . Weapon . | . . Parts Attached 3 | . 3 Parts Lost 1 | . 1 Damage Taken 321 | . 321 Core 250 | . 250 Player 2/Cogmind (%) 100 | . 100 Absorbed by Shields . | . . Damage Inflicted 525 | . 525 Player 2/Cogmind (%) 92 | . 92 Combat Hostiles Destroyed 3 | . 3 Player 2/Cogmind (%) 100 | . 100 Game ------ Seed ReflectiveVisualFilter Manual? 0 Play Time 00:03:19 Cumulative 252.7 hours Start 2020.05.02 @ 23:41:45 End 2020.05.02 @ 23:43:29 Sessions 1 Manual Loads 0 Difficulty Rogue Special Mode AFD2020/Player2 Game No. 393 Rogue 392 Adventurer 0 Explorer 1 Win Type - Total 1 Types 1/0/0/0/0/0/0 Lore% 65 Gallery% 79 Achievement% 54 Wizard Run 0 Options --------- ASCII 1 Keyboard 1 Movement Vi Keybinds 0 Fullscreen 2 Font 14/Cog Map View 72x52 Tactical HUD 1 Map Filters NONE Filters LOW_CONTRAST(13,24,33) Steam 0 RUN: 387f1bfc-c64a-4ff2-b052-21aad2c8c71b